bitfinex/quotes_ETHUSD_20240612
["timestamp","ask_amount","ask_price","bid_price","bid_amount"]
[1718218890216,2.706,3576.8,3575.6,1.678]
[1718218890418,2.79623,3576.3,3575.7,3.66144514]
[1718218891021,0.69683569,3576.9,3575.7,3.66144514]
[1718218891022,2.7964,3576.1,3575.7,3.66144514]
[1718218891625,2.79657,3575.8,3575.7,3.66144514]
[1718218891861,2.79657,3575.8,3575.7,1.98344514]
[1718218892357,2.79704,3575.2,3575.1,1.678]
[1718218892520,2.79704,3575.2,3575.1,4.02524514]
[1718218892940,2.79704,3575.2,3575.1,1.43344514]
[1718218893136,2.79704,3575.2,3575.1,3.11144514]
[1718218893943,2.79704,3575.2,3575.1,1.43344514]
[1718218894331,2.79704,3575.2,3575.1,1.98344514]
[1718218895017,2.79704,3575.2,3575.1,3.66144514]
[1718218895218,2.79704,3575.2,3575.1,1.43344514]
[1718218896225,2.79751,3574.6,3574.4,7.46]
[1718218896487,2.79751,3574.6,3574.5,1.43344514]
[1718218897632,2.79688,3575.5,3574.5,3.11144514]
[1718218897841,2.79688,3575.5,3574.9,1.678]
[1718218898069,2.79688,3575.5,3575.0,3.15956323]
[1718218898481,2.79688,3575.5,3575.1,0.55]
[1718218898646,2.79688,3575.5,3575.2,1.43344514]
[1718218898840,2.79688,3575.5,3575.3,0.55]
[1718218899079,2.79688,3575.5,3575.4,1.43344514]
[1718218899379,2.79647,3576.0,3575.4,3.47758965]
[1718218899583,2.79647,3576.0,3575.6,1.678]
[1718218899761,2.79647,3576.0,3575.7,1.43344514]
[1718218899959,2.79647,3576.0,3575.8,0.55]
[1718218900167,2.79647,3576.0,3575.9,1.43344514]
[1718218900484,2.79647,3576.0,3575.9,1.98344514]
[1718218900782,2.79612,3576.4,3575.9,3.66144514]
[1718218900980,2.79612,3576.4,3576.0,2.228]
[1718218901183,2.79612,3576.4,3576.1,1.43344514]
[1718218901491,2.79579,3576.9,3576.3,1.678]
[1718218901684,2.79579,3576.9,3576.4,2.03570736]
[1718218902175,0.006,3577.5,3576.4,2.03570736]
[1718218902176,2.79593,3576.7,3576.4,2.03570736]
[1718218902386,2.79593,3576.7,3576.4,1.98344514]
[1718218902980,2.79536,3577.4,3576.4,1.98344514]
[1718218902981,2.79602,3576.5,3576.4,1.98344514]
[1718218903181,2.79602,3576.5,3576.4,1.43344514]
[1718218903561,2.79577,3576.9,3575.2,2.4202]
[1718218903867,0.05623587,3576.8,3575.5,1.43344514]
[1718218904065,0.05623587,3576.7,3575.6,2.228]
[1718218904268,0.05623587,3576.7,3575.7,1.43344514]
[1718218904466,0.05623587,3576.7,3575.8,0.55]
[1718218904697,0.05623587,3576.7,3575.9,1.43344514]
[1718218904881,2.79606,3576.5,3575.9,3.47758965]
[1718218905082,2.79606,3576.5,3576.0,3.68117488]
[1718218905282,2.79547,3577.3,3576.0,1.98344514]
[1718218905283,2.79623,3576.3,3576.0,1.98344514]
[1718218906757,2.79597,3576.6,3576.0,1.98344514]
[1718218907707,2.79615,3576.4,3576.0,1.98344514]
[1718218908023,2.7963,3576.2,3576.0,1.43344514]
[1718218908458,0.05623587,3576.1,3576.0,1.43344514]
[1718218908859,0.05623587,3576.1,3575.3,1.28802]
[1718218909072,0.05623587,3576.1,3575.4,1.43344514]
[1718218909357,0.05623587,3576.1,3574.9,0.31595686]
[1718218909697,0.05623587,3576.1,3575.0,1.43344514]
[1718218909996,2.79678,3575.6,3575.1,0.2308767]
[1718218910160,3.0,3576.7,3575.4,1.43344514]
[1718218910373,2.79613,3576.4,3575.8,1.43344514]
[1718218911095,2.79613,3576.4,3575.9,0.55]
[1718218911403,2.79613,3576.4,3576.0,1.68771198]
[1718218911606,2.79613,3576.4,3576.1,0.55]
[1718218911810,2.79613,3576.4,3576.2,1.43344514]
[1718218911995,2.79613,3576.4,3576.3,0.55]
[1718218912188,2.79613,3576.4,3576.3,1.98344514]
[1718218912509,2.79652,3575.9,3575.4,2.4485]
[1718218912711,2.79652,3575.9,3575.5,2.42429514]
[1718218913078,2.79652,3575.9,3575.5,5.42429514]
[1718218913477,2.79652,3575.9,3575.5,2.42429514]
[1718218913814,2.7967,3575.7,3575.5,2.42429514]
[1718218914041,2.7967,3575.7,3575.5,1.43344514]
[1718218915012,2.7961,3576.5,3575.6,1.43344514]
[1718218915219,2.7961,3576.5,3575.7,1.57678965]
[1718218915429,2.7961,3576.5,3575.7,1.43344514]
[1718218915579,2.79623,3576.3,3575.8,0.60586134]
[1718218915781,2.79623,3576.3,3575.9,1.43344514]
[1718218916041,2.79623,3576.3,3576.0,0.75393065]
[1718218916180,2.79623,3576.3,3576.1,1.43344514]
[1718218917612,2.79599,3576.6,3576.2,0.55]
[1718218917815,2.79599,3576.6,3576.3,1.43344514]
[1718218918010,2.79573,3576.9,3576.4,2.228]
[1718218918223,2.79573,3576.9,3576.5,1.43344514]
[1718218918384,2.79595,3576.7,3576.6,0.55]
[1718218918590,2.79595,3576.7,3576.6,1.43344514]
[1718218919196,2.79566,3577.0,3576.6,3.85978965]
[1718218919400,2.79533,3577.4,3576.8,1.678]
[1718218919700,2.79533,3577.4,3576.9,1.43344514]
[1718218919888,2.79533,3577.4,3576.9,3.11144514]
[1718218920225,2.79533,3577.4,3577.0,0.55]
[1718218920388,2.79533,3577.4,3577.1,1.43344514]
[1718218920589,2.79533,3577.4,3577.2,0.55]
[1718218920802,2.79533,3577.4,3577.3,1.43344514]
[1718218922230,0.280133,3577.4,3576.6,1.678]
[1718218922526,0.05623587,3577.3,3576.7,1.98344514]
[1718218922728,2.79575,3576.9,3576.7,1.98344514]
[1718218922934,2.79575,3576.9,3576.7,1.43344514]
[1718218923098,0.05623587,3576.8,3575.9,7.46]
[1718218923301,0.05623587,3576.8,3576.0,1.43344514]
[1718218923500,2.79624,3576.3,3576.0,1.43344514]
[1718218923737,2.79634,3576.1,3576.0,1.43344514]
[1718218925940,2.3588,3577.2,3576.0,3.11144514]
[1718218926237,2.79588,3576.7,3576.0,3.11144514]
[1718218926446,2.79564,3577.0,3576.4,1.678]
[1718218926601,2.79585,3576.8,3576.5,1.98344514]
[1718218926804,2.79595,3576.6,3576.5,1.43344514]
[1718218927199,2.79585,3576.8,3575.9,7.46]
[1718218927399,3.631149,3577.5,3576.0,1.98344514]
[1718218927400,0.05623587,3576.7,3576.0,1.98344514]
[1718218927605,2.79606,3576.5,3576.0,1.98344514]
[1718218927906,2.79606,3576.5,3576.1,1.11214451]
[1718218928141,2.79584,3576.8,3576.2,1.98344514]
[1718218928324,2.79568,3577.0,3576.3,0.05591635]
[1718218928636,2.79568,3577.0,3576.4,1.98344514]
[1718218929199,2.79545,3577.3,3576.6,1.678]
[1718218929422,2.79545,3577.3,3576.7,4.08897237]
[1718218929623,2.79545,3577.3,3576.8,0.05590999]
[1718218929832,2.79545,3577.3,3576.9,1.98344514]
[1718218930958,2.79545,3577.3,3576.9,3.66144514]
[1718218931236,0.006,3577.5,3576.9,3.66144514]
[1718218931441,0.006,3577.5,3577.0,2.10090448]
[1718218931628,0.006,3577.5,3577.1,2.03818622]
[1718218932145,0.006,3577.5,3577.1,1.98344514]
[1718218932443,0.006,3577.5,3576.5,1.678]
[1718218932444,2.79583,3576.8,3576.5,1.678]
[1718218932606,2.79558,3577.1,3576.6,1.43344514]
[1718218933214,2.79575,3576.9,3576.6,1.43344514]
[1718218933501,2.80126,3577.5,3575.9,1.678]
[1718218933502,0.05623587,3576.8,3575.9,1.678]
[1718218933701,2.79587,3576.7,3576.6,1.43344514]
[1718218933901,2.4636,3577.3,3575.7,9.8463]
[1718218933902,2.79572,3576.9,3575.7,7.46]
[1718218934143,2.79634,3576.1,3575.8,1.43344514]
[1718218934517,2.79634,3576.1,3575.8,3.11144514]
[1718218934713,2.79634,3576.1,3575.9,1.05714451]
[1718218934943,2.79634,3576.1,3576.0,1.43344514]
[1718218935118,2.79615,3576.4,3576.0,1.43344514]
[1718218935751,2.79615,3576.4,3576.1,0.55]
[1718218935906,2.79615,3576.4,3576.2,1.43344514]
[1718218936102,0.05623587,3576.3,3576.2,1.43344514]
[1718218936435,0.05623587,3576.3,3575.7,7.46]
[1718218936436,2.79632,3576.2,3575.7,7.46]
[1718218936748,2.79632,3576.2,3575.8,3.11144514]
[1718218937638,2.79573,3576.9,3576.1,1.678]
[1718218937807,2.79573,3576.9,3576.2,3.69641134]
[1718218938005,2.79573,3576.9,3576.3,0.55]
[1718218938242,2.79573,3576.9,3576.4,1.43344514]
[1718218938438,2.79573,3576.9,3576.5,0.55]
[1718218938619,2.79573,3576.9,3576.6,1.43344514]
[1718218939017,2.79573,3576.9,3576.5,0.55]
[1718218939018,2.79587,3576.7,3576.5,0.55]
[1718218939228,2.79647,3576.0,3575.6,1.678]
[1718218939560,2.80129,3577.5,3576.0,1.678]
[1718218939561,2.79613,3576.4,3576.0,1.678]
[1718218939713,2.79613,3576.4,3576.1,1.43344514]
[1718218940234,2.79626,3576.2,3576.1,1.43344514]
[1718218941139,2.79626,3576.2,3575.4,1.678]
[1718218941140,2.79664,3575.8,3575.4,1.678]
[1718218941339,2.79664,3575.8,3575.5,1.98344514]
[1718218943355,2.79632,3576.2,3575.6,1.678]
[1718218943571,2.79632,3576.2,3575.7,1.98344514]
[1718218944532,7.46,3577.2,3576.1,3.11144514]
[1718218944733,2.79566,3577.0,3576.4,1.678]
[1718218944935,2.79584,3576.8,3576.5,1.43344514]
[1718218945124,2.79584,3576.8,3576.5,1.98344514]
[1718218946853,2.79628,3576.2,3575.9,1.678]
[1718218947024,2.79628,3576.2,3576.0,1.43344514]
[1718218947358,0.05623587,3576.1,3575.6,0.58623389]
[1718218947538,2.79643,3576.0,3575.7,1.43344514]
[1718218947847,2.79551,3577.2,3575.7,1.43344514]
[1718218948048,2.79611,3576.4,3575.9,1.678]
[1718218948212,2.79611,3576.4,3576.0,1.43344514]
[1718218949020,2.79611,3576.4,3576.1,0.55]
[1718218949215,2.79611,3576.4,3576.2,1.43344514]
[1718218949411,2.79655,3575.9,3575.6,1.678]
[1718218949635,2.79655,3575.9,3575.7,2.49380361]
[1718218949838,2.79655,3575.9,3575.7,1.43344514]
[1718218951324,0.05623587,3575.8,3575.7,1.43344514]
[1718218951772,0.05623587,3575.8,3575.1,1.678]
[1718218952057,0.05623587,3575.8,3575.2,1.43344514]
[1718218952464,2.79703,3575.3,3575.2,1.43344514]
[1718218953027,2.3656,3576.3,3575.2,2.49058965]
[1718218953028,2.7967,3575.7,3575.2,2.49058965]
[1718218953246,2.7967,3575.7,3575.2,1.43344514]
[1718218953467,2.7967,3575.7,3575.3,0.55]
[1718218953671,2.7967,3575.7,3575.4,1.43344514]
[1718218953987,2.4677,3576.8,3575.4,1.43344514]
[1718218953988,2.79642,3576.0,3575.5,2.228]
[1718218954124,2.79642,3576.0,3575.6,1.43344514]
[1718218954329,2.79642,3576.0,3575.7,0.55]
[1718218954685,2.79665,3575.7,3575.5,0.55]
[1718218954865,2.79665,3575.7,3575.6,1.43344514]
[1718218956473,0.24677,3576.7,3575.6,1.43344514]
[1718218956643,0.05623587,3576.6,3575.7,2.28392777]
[1718218956846,2.79625,3576.3,3575.8,3.11144514]
[1718218957079,2.79625,3576.3,3575.9,0.55]
[1718218957244,2.79625,3576.3,3576.0,1.43344514]
[1718218957582,2.79625,3576.3,3576.1,0.55]
[1718218957743,2.79625,3576.3,3576.2,1.43344514]
[1718218960179,2.79625,3576.3,3575.4,1.678]
[1718218960180,2.7966,3575.8,3575.4,1.678]
[1718218960354,2.7966,3575.8,3575.5,1.65986853]
[1718218960560,2.7966,3575.8,3575.5,1.43344514]
[1718218962445,2.7966,3575.8,3575.6,0.55]
[1718218962650,2.7966,3575.8,3575.7,1.43344514]
[1718218962865,2.7966,3575.8,3575.7,1.98344514]
[1718218963069,2.2575,3577.0,3575.7,3.91478965]
[1718218963276,0.05623587,3576.9,3575.8,2.28392533]
[1718218963473,0.05623587,3576.9,3575.9,1.43344514]
[1718218963860,0.05623587,3576.9,3576.0,0.55]
[1718218964057,0.05623587,3576.9,3576.1,1.43344514]
[1718218964058,2.79614,3576.4,3576.1,1.43344514]
[1718218965384,2.79614,3576.4,3576.1,1.79958965]
[1718218966551,0.006,3577.5,3576.8,2.79578]
[1718218966745,2.79538,3577.4,3576.9,1.43344514]
[1718218966950,2.79538,3577.4,3577.0,0.69334451]
[1718218967245,0.006,3577.5,3577.0,0.69334451]
[1718218967246,0.006,3577.5,3577.1,1.43344514]
[1718218967661,0.006,3577.5,3577.3,1.43344514]
[1718218968189,0.006,3577.5,3577.4,0.55]
[1718218968376,0.006,3577.5,3577.4,1.98344514]
[1718218968563,0.006,3577.5,3577.4,2.18178965]
[1718218974682,2.79393,3579.2,3578.0,2.79481]
[1718218974853,2.79393,3579.2,3578.2,1.43344514]
[1718218975050,2.79393,3579.2,3578.3,0.55]
[1718218975362,2.79393,3579.2,3578.4,1.68678965]
[1718218975578,2.79393,3579.2,3578.5,0.55]
[1718218975773,2.79393,3579.2,3578.6,1.43344514]
[1718218975986,2.79409,3579.0,3578.7,0.55]
[1718218976189,2.79409,3579.0,3578.8,1.43344514]
[1718218977154,2.2949,3579.6,3578.9,1.43344514]
[1718218977498,2.79407,3579.0,3578.9,1.43344514]
[1718218977878,2.79378,3579.4,3578.9,1.43344514]
[1718218978082,2.79378,3579.4,3579.0,0.55]
[1718218978260,2.79378,3579.4,3579.1,1.43344514]
[1718218978586,2.79392,3579.2,3579.1,1.43344514]
[1718218982073,2.79392,3579.2,3578.1,1.678]
[1718218982074,2.794,3579.1,3578.1,1.678]
[1718218982272,2.79454,3578.5,3578.2,1.43344514]
[1718218983793,2.79462,3578.3,3578.2,1.43344514]
[1718218983997,2.79462,3578.3,3577.4,0.19834451]
[1718218983998,2.79512,3577.7,3577.4,0.19834451]
[1718218984200,2.79512,3577.7,3577.0,2.42884451]
[1718218984201,2.79512,3577.7,3577.5,1.43344514]
[1718218984995,2.79512,3577.7,3577.5,1.74458965]
[1718218985405,5.10958,3579.0,3577.6,1.43344514]
[1718218985604,5.85039587,3578.9,3577.7,1.73389491]
[1718218985808,5.85039587,3578.9,3577.8,1.98344514]
[1718218986107,0.81658959,3578.8,3577.8,1.98344514]
[1718218986407,2.79477,3578.2,3577.8,1.98344514]
[1718218986995,2.79491,3578.0,3577.8,1.98344514]
[1718218988468,2.79465,3578.3,3577.8,1.98344514]
[1718218988709,2.79404,3579.1,3577.8,1.98344514]
[1718218988710,2.7944,3578.6,3578.0,3.11144514]
[1718218988910,2.3622,3579.6,3578.5,1.678]
[1718218989203,0.05623587,3579.5,3578.6,1.98344514]
[1718218989364,2.79413,3579.0,3578.6,3.66144514]
[1718218989565,2.79386,3579.3,3578.7,2.04414451]
[1718218989818,2.79386,3579.3,3578.8,2.03932358]
[1718218990203,2.79386,3579.3,3578.8,1.98344514]
[1718218991209,2.79386,3579.3,3578.8,3.66144514]
[1718218991429,2.79386,3579.3,3578.9,0.0557745]
[1718218991573,2.79386,3579.3,3579.0,2.39178156]
[1718218991910,2.79312,3580.3,3579.4,1.678]
[1718218992075,2.79312,3580.3,3579.7,2.96434514]
[1718218992279,2.79282,3580.7,3580.1,1.678]
[1718218992497,2.79282,3580.7,3580.2,0.57366056]
[1718218993273,2.79299,3580.4,3580.3,1.43344514]
[1718218994014,2.79344,3579.9,3579.3,2.4884]
[1718218994214,3.072032,3580.7,3579.4,1.43344514]
[1718218994215,2.79364,3579.6,3579.4,1.43344514]
[1718218994580,2.79336,3580.0,3579.5,1.678]
[1718218994783,2.79336,3580.0,3579.6,1.43344514]
[1718218994999,2.3159,3580.4,3579.6,1.43344514]
[1718218995000,2.79352,3579.8,3579.6,1.43344514]
[1718218995402,0.279282,3580.7,3579.7,3.11144514]
[1718218995680,0.05623587,3580.6,3579.7,3.66144514]
[1718218996515,2.79331,3580.0,3579.7,3.66144514]
[1718218996980,2.79331,3580.0,3579.7,1.98344514]
[1718218997495,7.75897,3581.2,3579.9,1.43344514]
[1718218997496,2.79287,3580.6,3579.9,1.43344514]
[1718218997683,2.79319,3580.2,3580.0,0.55]
[1718218997879,2.79319,3580.2,3580.1,1.43344514]
[1718218998087,5.05297,3581.2,3580.1,1.98344514]
[1718218998088,2.79292,3580.5,3580.1,1.98344514]
[1718218998377,2.79292,3580.5,3580.1,1.43344514]
[1718218998582,2.79292,3580.5,3580.2,0.55]
[1718218998789,2.79292,3580.5,3580.3,1.43344514]
[1718218999782,2.79292,3580.5,3578.4,12.6844723]
[1718218999783,0.05623587,3580.4,3579.1,2.4003]
[1718218999993,2.79343,3579.9,3579.4,1.43344514]
[1718219001120,2.79359,3579.7,3579.4,1.43344514]
[1718219001653,2.79323,3580.1,3579.4,1.43344514]
[1718219001942,2.79323,3580.1,3579.4,3.11144514]
[1718219002087,2.79323,3580.1,3579.5,0.02840724]
[1718219002419,2.79323,3580.1,3579.6,1.43344514]
[1718219002628,2.79299,3580.4,3579.7,3.71402872]
[1718219003626,2.79318,3580.2,3579.7,3.66144514]
[1718219004027,2.79337,3579.9,3579.7,1.98344514]
[1718219004320,2.79337,3579.9,3579.7,1.43344514]
[1718219004523,2.79279,3580.7,3579.7,1.43344514]
[1718219004685,0.33551487,3580.6,3579.7,1.43344514]
[1718219005284,2.79334,3580.0,3579.7,1.43344514]
[1718219007791,2.79382,3579.4,3579.0,3.0]
[1718219007990,2.79382,3579.4,3579.1,1.43344514]
[1718219008191,2.79349,3579.8,3579.3,3.11144514]
[1718219008513,2.79349,3579.8,3579.4,1.43344514]
[1718219008514,2.79367,3579.6,3579.4,1.43344514]
[1718219010093,2.79338,3579.9,3579.4,1.43344514]
[1718219010330,2.79338,3579.9,3579.5,0.55]
[1718219010497,2.79338,3579.9,3579.6,1.43344514]
[1718219010997,2.79315,3580.2,3579.7,0.55]
[1718219011198,2.79315,3580.2,3579.8,1.43344514]
[1718219012352,2.79294,3580.5,3579.9,0.55]
[1718219012531,2.79294,3580.5,3580.0,1.43344514]
[1718219012859,3.59502772,3581.5,3580.0,1.43344514]
[1718219012860,2.2691,3581.5,3580.0,3.11144514]
[1718219013077,2.79265,3580.9,3580.2,1.43344514]
[1718219013220,2.79265,3580.9,3580.3,0.55]
[1718219013414,2.79265,3580.9,3580.4,1.43344514]
[1718219013629,2.79265,3580.9,3580.5,0.55]
[1718219013840,2.79265,3580.9,3580.6,1.43344514]
[1718219014045,2.7923,3581.3,3580.7,0.55]
[1718219014247,2.79211,3581.6,3580.9,1.43344514]
[1718219014448,0.05623587,3581.5,3581.0,0.55]
[1718219014658,2.79211,3581.6,3581.1,1.43344514]
[1718219014945,2.79211,3581.6,3581.2,0.55]
[1718219015147,3.071321,3581.6,3581.3,1.43344514]
[1718219017265,3.021321,3581.6,3581.3,1.43344514]
[1718219018345,2.74211,3581.6,3581.3,1.43344514]
[1718219020855,1.32663471,3582.7,3581.5,3.11144514]
[1718219021064,5.21261,3583.5,3581.3,2.3278]
[1718219021065,0.05623587,3582.6,3581.6,3.66144514]
[1718219021371,0.05623587,3582.9,3581.6,3.66144514]
[1718219021669,0.47361193,3582.9,3581.6,3.66144514]
[1718219022195,0.05623587,3582.8,3582.1,3.11144514]
[1718219022468,2.79118,3582.8,3582.2,0.55]
[1718219022674,2.79118,3582.8,3582.3,1.43344514]
[1718219022834,2.79118,3582.8,3582.4,0.55]
[1718219023037,2.79118,3582.8,3582.5,1.43344514]
[1718219023235,0.279118,3582.8,3582.5,1.43344514]
[1718219023475,2.79126,3582.6,3582.5,1.43344514]
[1718219026304,2.79176,3582.0,3581.4,1.678]
[1718219026438,2.79176,3582.0,3581.6,1.43344514]
[1718219026634,2.79089,3583.1,3581.6,1.43344514]
[1718219026635,2.79197,3581.7,3581.6,1.43344514]
[1718219027173,2.79178,3582.0,3581.6,1.43344514]
[1718219028235,2.79178,3582.0,3581.7,0.69334451]
[1718219028374,2.79178,3582.0,3581.8,1.43344514]
[1718219028994,2.2542,3582.9,3581.9,0.55]
[1718219029206,10.25062,3583.5,3582.1,1.43344514]
[1718219029207,2.79097,3583.0,3582.1,1.43344514]
[1718219029484,2.7907,3583.4,3582.4,2.3612]
[1718219029693,2.4785,3584.2,3582.5,2.13915448]
[1718219029886,0.05623587,3584.1,3582.7,1.678]
[1718219030306,2.84634587,3584.1,3582.8,1.98344514]
[1718219030620,2.84634587,3584.1,3582.8,1.43344514]
[1718219030921,2.79083,3583.2,3582.8,1.43344514]
[1718219031418,2.79083,3583.2,3582.9,0.55]
[1718219031713,0.53248459,3584.0,3583.0,1.43344514]
[1718219031714,2.79052,3583.6,3583.0,1.43344514]
[1718219031921,0.05623587,3583.5,3583.1,0.55]
[1718219032093,0.05623587,3583.5,3583.2,1.43344514]
[1718219032416,0.05623587,3583.9,3583.2,1.43344514]
[1718219032631,2.79036,3583.8,3582.4,2.3612]
[1718219032780,0.39414392,3583.7,3582.5,1.98344514]
[1718219033223,2.79069,3583.4,3582.6,1.43344514]
[1718219033409,2.79086,3583.2,3582.7,0.55]
[1718219033710,2.79086,3583.2,3582.8,1.43344514]
[1718219033875,2.79086,3583.2,3582.9,0.55]
[1718219034085,2.79086,3583.2,3583.0,1.43344514]
[1718219035305,2.7911,3582.9,3582.4,2.3612]
[1718219035482,2.7911,3582.9,3582.5,1.43344514]
[1718219037441,2.79126,3582.6,3582.5,1.43344514]
[1718219039098,2.7918,3582.0,3581.5,1.678]
[1718219039408,2.7918,3582.0,3581.1,2.3886]
[1718219039409,2.79103,3583.0,3581.6,1.43344514]
[1718219039622,2.84726587,3583.0,3581.6,1.43344514]
[1718219039818,2.79154,3582.3,3581.6,1.43344514]
[1718219040028,2.79154,3582.3,3581.6,1.57678965]
[1718219040324,2.79154,3582.3,3581.6,3.25478965]
[1718219040527,2.79154,3582.3,3581.7,0.55]
[1718219040693,2.7917,3582.1,3581.8,1.43344514]
[1718219040893,2.79181,3581.9,3581.8,1.43344514]
[1718219041736,2.79231,3581.3,3581.1,1.678]
[1718219041935,2.79231,3581.3,3581.2,1.43344514]
[1718219042799,2.79263,3580.9,3580.4,1.678]
[1718219043042,2.79263,3580.9,3580.5,1.43344514]
[1718219043245,2.79282,3580.6,3580.5,1.43344514]
[1718219044329,0.279263,3580.9,3579.6,1.678]
[1718219044330,2.79316,3580.2,3579.6,1.678]
[1718219044538,2.79316,3580.2,3579.7,1.43344514]
[1718219045914,2.79331,3580.0,3579.7,1.43344514]
[1718219046141,2.79303,3580.4,3579.7,1.43344514]
[1718219046438,2.79272,3580.8,3579.9,3.11144514]
[1718219046739,7.46,3581.7,3580.5,3.11144514]
[1718219046740,2.79241,3581.2,3580.5,3.11144514]
[1718219047038,2.79209,3581.6,3580.7,3.11144514]
[1718219047214,2.79178,3582.0,3580.8,2.28384651]
[1718219047410,0.05623587,3581.9,3581.0,3.11144514]
[1718219047611,2.79228,3581.3,3581.0,1.43344514]
[1718219047801,2.792,3581.7,3581.0,1.79958965]
[1718219048006,2.79222,3581.4,3581.1,0.60584306]
[1718219048234,2.79222,3581.4,3581.2,1.43344514]
[1718219048745,2.79195,3581.8,3581.2,1.43344514]
[1718219048936,2.79195,3581.8,3581.3,0.55]
[1718219049142,2.79195,3581.8,3581.4,1.43344514]
[1718219049516,2.79162,3582.2,3581.6,1.43344514]
[1718219049712,2.4276,3583.0,3581.9,3.11144514]
[1718219049713,2.7913,3582.6,3581.9,3.11144514]
[1718219049913,2.7913,3582.6,3582.0,0.05582801]
[1718219050107,2.79144,3582.4,3582.1,1.98344514]
[1718219050305,2.79158,3582.2,3582.1,1.43344514]
[1718219051430,2.706,3583.4,3582.1,1.43344514]
[1718219051744,2.7913,3582.6,3582.1,1.43344514]
[1718219051945,2.7913,3582.6,3582.2,0.55]
[1718219052236,2.791,3583.0,3582.3,1.43344514]
[1718219052537,2.791,3583.0,3582.4,0.55]
[1718219052737,2.791,3583.0,3582.5,1.43344514]
[1718219053173,2.79066,3583.4,3582.5,1.63178965]
[1718219053365,0.05623587,3583.3,3582.6,0.55]
[1718219053646,2.79083,3583.2,3582.7,1.43344514]
[1718219053842,2.79105,3582.9,3582.7,1.43344514]
[1718219054031,0.05623587,3582.8,3582.7,1.43344514]
[1718219054362,0.34096446,3582.8,3581.9,2.4811]
[1718219054527,2.79144,3582.4,3582.0,1.98344514]
[1718219055014,2.79096,3583.0,3582.1,1.43344514]
[1718219055214,2.706,3583.4,3582.2,0.55]
[1718219055215,2.79112,3582.8,3582.2,0.55]
[1718219055427,2.79112,3582.8,3582.3,1.43344514]
[1718219055621,2.79112,3582.8,3582.4,0.55]
[1718219055833,2.706,3583.4,3582.5,1.43344514]
[1718219055834,2.79126,3582.6,3582.5,1.43344514]
[1718219057048,2.79164,3582.2,3581.5,1.678]
[1718219057258,0.05623587,3582.1,3581.6,1.43344514]
[1718219057414,0.05623587,3582.5,3581.6,1.43344514]
[1718219058241,2.79164,3582.2,3581.7,0.05583439]
[1718219058451,2.79164,3582.2,3581.4,1.678]
[1718219058452,2.79114,3582.8,3581.8,1.98344514]
[1718219058618,2.79178,3582.0,3581.8,1.43344514]
[1718219058950,0.05623587,3581.9,3581.8,1.43344514]
[1718219059650,2.79178,3582.0,3581.8,1.43344514]
[1718219059810,0.05623587,3581.9,3581.8,1.43344514]
[1718219060435,2.79202,3581.7,3581.0,1.678]
[1718219060658,2.79202,3581.7,3581.1,2.95308641]
[1718219060860,2.79174,3582.0,3581.3,1.43344514]
[1718219061072,2.79174,3582.0,3581.4,0.60583764]
[1718219061379,2.79195,3581.8,3581.5,1.43344514]
[1718219061541,2.79195,3581.8,3581.6,0.55]
[1718219061737,2.79195,3581.8,3581.7,1.43344514]
[1718219062541,2.79162,3582.2,3581.7,1.43344514]
[1718219062941,2.79179,3582.0,3581.7,1.43344514]
[1718219065638,2.7922,3581.5,3580.9,1.678]
[1718219065839,2.79235,3581.3,3581.0,1.90124514]
[1718219066075,2.79235,3581.3,3581.0,1.43344514]
[1718219068070,2.79243,3581.1,3581.0,1.43344514]
[1718219068263,2.79243,3581.1,3580.1,9.877]
[1718219068264,2.79293,3580.5,3580.2,1.678]
[1718219068579,2.79263,3580.9,3580.3,1.43344514]
[1718219068777,2.79263,3580.9,3580.4,1.48930181]
[1718219069677,0.49864,3581.7,3580.5,3.66144514]
[1718219069678,2.79238,3581.2,3580.5,3.66144514]
[1718219069985,2.79258,3581.0,3580.5,3.66144514]
[1718219072356,2.79258,3581.0,3580.6,0.0558499]
[1718219072555,2.79258,3581.0,3580.7,1.98344514]
[1718219073844,2.79229,3581.3,3580.7,3.66144514]
[1718219074056,2.79229,3581.3,3580.8,0.05584676]
[1718219074259,2.79229,3581.3,3580.9,1.98344514]
[1718219074576,2.79203,3581.7,3581.0,3.16729128]
[1718219074886,2.79215,3581.5,3581.1,0.92172913]
[1718219075082,2.79215,3581.5,3581.2,1.43344514]
[1718219075849,2.79228,3581.3,3581.2,1.43344514]
[1718219076889,2.79275,3580.7,3580.3,1.678]
[1718219077079,2.79275,3580.7,3580.4,1.43344514]
[1718219079057,2.7929,3580.5,3580.4,1.43344514]
[1718219081306,2.79347,3579.8,3579.5,1.678]
[1718219081453,2.79347,3579.8,3579.6,1.43344514]
[1718219082445,2.79347,3579.8,3579.7,0.55]
[1718219082652,2.79347,3579.8,3579.7,1.98344514]
[1718219085481,2.7926,3580.9,3579.7,1.98344514]
[1718219085662,2.7929,3580.5,3579.8,2.23765476]
[1718219086252,2.79272,3580.8,3580.0,3.11144514]
[1718219086452,2.79272,3580.8,3580.1,0.60585752]
[1718219086686,2.79286,3580.6,3580.2,1.43344514]
[1718219087570,2.79262,3580.9,3580.3,3.13535652]
[1718219087770,2.79262,3580.9,3580.4,0.97438831]
[1718219087965,2.4148,3581.6,3580.5,1.43344514]
[1718219088185,2.79238,3581.2,3580.6,0.60585067]
[1718219088383,2.79238,3581.2,3580.7,1.43344514]
[1718219088993,2.79253,3581.0,3580.7,1.43344514]
[1718219089691,2.79253,3581.0,3580.8,0.55]
[1718219089984,2.79253,3581.0,3580.9,1.43344514]
[1718219090185,2.79233,3581.3,3580.9,1.43344514]
[1718219090395,2.79209,3581.6,3581.0,0.55]
[1718219090697,2.79185,3581.9,3581.3,1.43344514]
[1718219090904,2.79185,3581.9,3581.4,0.03261759]
[1718219091111,2.79158,3582.2,3581.5,1.43344514]
[1718219091457,2.79135,3582.5,3581.7,3.11144514]
[1718219091772,2.79135,3582.5,3581.8,4.08900371]